[Event "*** Titled Tuesday 3|2 Blitz"]
[Site "Chess.com"]
[Date "2016.02.02"]
[Round "7"]
[White "gmcorrales"]
[Black "Gabrielian_Artur"]
[Result "1-0"]
[WhiteElo "2491"]
[BlackElo "2460"]
[TimeControl "180+2"]
[EndTime "18:27:19 PST"]
[Termination "gmcorrales won on time"]

1. e4 {[%clk 0:03:01.9]} 1... c5 {[%clk 0:02:59.1]} 2. Nf3 {[%clk 0:03:02.2]}
2... d6 {[%clk 0:03:00.3]} 3. d4 {[%clk 0:03:01.9]} 3... cxd4 {[%clk 0:03:01.7]}
4. Nxd4 {[%clk 0:03:03.8]} 4... Nf6 {[%clk 0:03:02.7]} 5. f3 {[%clk 0:03:04.4]}
5... e6 {[%clk 0:03:00.9]} 6. c4 {[%clk 0:03:04.9]} 6... Be7 {[%clk 0:03:01.8]}
7. Nc3 {[%clk 0:03:05.5]} 7... O-O {[%clk 0:03:02.8]} 8. Be2 {[%clk 0:03:06.7]}
8... b6 {[%clk 0:03:03.8]} 9. O-O {[%clk 0:03:06.2]} 9... Bb7 {[%clk 0:03:05.2]}
10. Be3 {[%clk 0:03:05.4]} 10... Nbd7 {[%clk 0:03:05.8]} 11. Qd2 {[%clk
0:03:05]} 11... a6 {[%clk 0:03:06.4]} 12. Rfd1 {[%clk 0:03:05.6]} 12... Qc7
{[%clk 0:03:06.8]} 13. Rac1 {[%clk 0:03:06.4]} 13... Rac8 {[%clk 0:03:07.7]} 14.
b4 {[%clk 0:03:02.8]} 14... Rfd8 {[%clk 0:03:08.2]} 15. a3 {[%clk 0:03:03.7]}
15... Qb8 {[%clk 0:03:09.1]} 16. Bf2 {[%clk 0:02:51.4]} 16... Bf8 {[%clk
0:03:09.7]} 17. Bf1 {[%clk 0:02:50.9]} 17... Ne5 {[%clk 0:03:05]} 18. Na4 {[%clk
0:02:51.3]} 18... Ba8 {[%clk 0:03:01.5]} 19. Nb3 {[%clk 0:02:51.2]} 19... Ned7
{[%clk 0:02:35.2]} 20. Qe3 {[%clk 0:02:41.7]} 20... b5 {[%clk 0:02:35.1]} 21.
Nb6 {[%clk 0:02:42.5]} 21... Nxb6 {[%clk 0:02:31.6]} 22. Qxb6 {[%clk 0:02:44.4]}
22... Qxb6 {[%clk 0:01:56.9]} 23. Bxb6 {[%clk 0:02:46.3]} 23... Re8 {[%clk
0:01:58.1]} 24. cxb5 {[%clk 0:02:44]} 24... axb5 {[%clk 0:01:59.1]} 25. Bxb5
{[%clk 0:02:44.5]} 25... Rxc1 {[%clk 0:01:59.5]} 26. Rxc1 {[%clk 0:02:42.4]}
26... Rb8 {[%clk 0:02:00.3]} 27. Bc6 {[%clk 0:02:43]} 27... Rxb6 {[%clk
0:01:58]} 28. Bxa8 {[%clk 0:02:44]} 28... Ra6 {[%clk 0:01:59.2]} 29. Rc8 {[%clk
0:02:42.7]} 29... Rxa3 {[%clk 0:01:59.7]} 30. Nd4 {[%clk 0:02:39.8]} 30... g6
{[%clk 0:01:58.9]} 31. b5 {[%clk 0:02:36.8]} 31... Nd7 {[%clk 0:01:59.5]} 32.
Bc6 {[%clk 0:02:29.9]} 32... Nc5 {[%clk 0:01:31.1]} 33. b6 {[%clk 0:02:21.5]}
33... Ra1+ {[%clk 0:01:31.2]} 34. Kf2 {[%clk 0:02:19.8]} 34... Rb1 {[%clk
0:01:32]} 35. Nb5 {[%clk 0:02:20]} 35... Rb2+ {[%clk 0:01:31.5]} 36. Kg3 {[%clk
0:02:19.1]} 36... Kg7 {[%clk 0:01:30.6]} 37. Rc7 {[%clk 0:02:09.4]} 37... d5
{[%clk 0:01:15.9]} 38. e5 {[%clk 0:01:56.9]} 38... Na6 {[%clk 0:00:50.8]} 39.
Be8 {[%clk 0:01:51.2]} 39... Nxc7 {[%clk 0:00:19.8]} 40. bxc7 {[%clk 0:01:51.8]}
40... Rc2 {[%clk 0:00:21.1]} 41. Bd7 {[%clk 0:01:52.4]} 41... Bb4 {[%clk
0:00:16.3]} 42. c8=Q {[%clk 0:01:44.5]} 42... Be1+ {[%clk 0:00:16.3]} 43. Kh3
{[%clk 0:01:41.3]} 43... Rxc8 {[%clk 0:00:17.2]} 44. Bxc8 {[%clk 0:01:43.2]}
44... g5 {[%clk 0:00:18.4]} 45. Bd7 {[%clk 0:01:39.6]} 45... h5 {[%clk
0:00:16.8]} 46. g3 {[%clk 0:01:38.1]} 46... Kg6 {[%clk 0:00:17.4]} 47. Be8
{[%clk 0:01:38.6]} 47... Kf5 {[%clk 0:00:14.2]} 48. Bxf7 {[%clk 0:01:39.1]}
48... g4+ {[%clk 0:00:13.9]} 49. Kg2 {[%clk 0:01:39.8]} 49... gxf3+ {[%clk
0:00:14.1]} 50. Kxf3 {[%clk 0:01:41.7]} 50... h4 {[%clk 0:00:13.5]} 51. g4+
{[%clk 0:01:38.7]} 51... Kxe5 {[%clk 0:00:14.1]} 52. Nc7 {[%clk 0:01:31.4]}
52... Kf6 {[%clk 0:00:12.1]} 53. Bg8 {[%clk 0:01:30]} 53... Bc3 {[%clk
0:00:08.3]} 54. Nxe6 {[%clk 0:01:30.4]} 54... h3 {[%clk 0:00:07]} 55. Nf4 {[%clk
0:01:29.8]} 55... d4 {[%clk 0:00:07.5]} 56. Bc4 {[%clk 0:01:30.6]} 56... Kg5
{[%clk 0:00:05.8]} 57. Bd3 {[%clk 0:01:22.6]} 57... Kh4 {[%clk 0:00:05.5]} 58.
Ne2 {[%clk 0:01:17.8]} 58... Ba5 {[%clk 0:00:04.4]} 59. Nxd4 {[%clk 0:01:17.4]}
59... Bc7 {[%clk 0:00:05.5]} 60. Nf5+ {[%clk 0:01:18.1]} 60... Kg5 {[%clk
0:00:06.4]} 61. Ng3 {[%clk 0:01:20]} 61... Bb8 {[%clk 0:00:07.6]} 62. Bf1 {[%clk
0:01:17.1]} 62... Kh4 {[%clk 0:00:08.8]} 63. Bb5 {[%clk 0:01:06.6]} 63... Bc7
{[%clk 0:00:09.1]} 64. Be2 {[%clk 0:01:00.9]} 64... Bb8 {[%clk 0:00:09.5]} 65.
Nf1 {[%clk 0:00:54.9]} 65... Bc7 {[%clk 0:00:10.5]} 66. Ke4 {[%clk 0:00:55.7]}
66... Kg5 {[%clk 0:00:09.9]} 67. Bf3 {[%clk 0:00:56.6]} 67... Bb8 {[%clk
0:00:10.2]} 68. Ng3 {[%clk 0:00:46]} 68... Bc7 {[%clk 0:00:10.7]} 69. Ke3 {[%clk
0:00:45.9]} 69... Bb8 {[%clk 0:00:09.6]} 70. Kf2 {[%clk 0:00:46.7]} 70... Bc7
{[%clk 0:00:08.4]} 71. Kg1 {[%clk 0:00:47.7]} 71... Bb8 {[%clk 0:00:06.5]} 72.
Bd1 {[%clk 0:00:47.8]} 72... Bc7 {[%clk 0:00:06.4]} 73. Ne4+ {[%clk 0:00:47.7]}
73... Kf4 {[%clk 0:00:06.1]} 74. Nf2 {[%clk 0:00:49.6]} 1-0

[Event "*** Titled Tuesday 3|2 Blitz"]
[Site "Chess.com"]
[Date "2016.02.02"]
[Round "8"]
[White "Kanthecarowin"]
[Black "Recombinant"]
[Result "1/2-1/2"]
[WhiteElo "2162"]
[BlackElo "2214"]
[TimeControl "180+2"]
[EndTime "18:33:40 PST"]
[Termination "Game drawn by agreement"]

1. d4 {[%clk 0:03:01.9]} 1... Nf6 {[%clk 0:03:00.1]} 2. c4 {[%clk 0:03:02.6]}
2... e6 {[%clk 0:03:01.3]} 3. Nc3 {[%clk 0:03:03.4]} 3... Bb4 {[%clk 0:03:02]}
4. Qc2 {[%clk 0:03:04.4]} 4... O-O {[%clk 0:03:02.2]} 5. e4 {[%clk 0:03:04.6]}
5... d5 {[%clk 0:03:02.7]} 6. e5 {[%clk 0:03:04.1]} 6... Ne4 {[%clk 0:03:03.7]}
7. Bd3 {[%clk 0:03:05]} 7... c5 {[%clk 0:03:04.8]} 8. Ne2 {[%clk 0:02:58]} 8...
cxd4 {[%clk 0:03:04.4]} 9. Nxd4 {[%clk 0:02:59.9]} 9... Nc6 {[%clk 0:03:05.2]}
10. Nxc6 {[%clk 0:02:57.9]} 10... bxc6 {[%clk 0:03:04.9]} 11. O-O {[%clk
0:02:57]} 11... Bxc3 {[%clk 0:03:03.8]} 12. bxc3 {[%clk 0:02:57.7]} 12... f5
{[%clk 0:03:02.6]} 13. cxd5 {[%clk 0:02:59.1]} 13... cxd5 {[%clk 0:03:02.6]} 14.
c4 {[%clk 0:03:00.4]} 14... Bb7 {[%clk 0:02:58.9]} 15. cxd5 {[%clk 0:03:01.3]}
15... Bxd5 {[%clk 0:02:59.6]} 16. Ba3 {[%clk 0:03:01.8]} 16... Rc8 {[%clk
0:02:59.2]} 17. Qa4 {[%clk 0:02:59.8]} 17... Qg5 {[%clk 0:02:25.3]} 18. Bxe4
{[%clk 0:02:42.6]} 18... Bxe4 {[%clk 0:02:25.8]} 19. f3 {[%clk 0:02:43.4]} 19...
Qe3+ {[%clk 0:02:26.3]} 20. Kh1 {[%clk 0:02:44.2]} 20... Bc6 {[%clk 0:02:27.4]}
21. Qb3 {[%clk 0:02:35.4]} 21... Qxb3 {[%clk 0:02:25]} 22. axb3 {[%clk
0:02:37.3]} 22... Rfd8 {[%clk 0:02:26.5]} 23. Bd6 {[%clk 0:02:34.8]} 23... Ra8
{[%clk 0:02:27.4]} 24. b4 {[%clk 0:02:34.9]} 24... a6 {[%clk 0:02:27.4]} 25.
Rfc1 {[%clk 0:02:36]} 25... Bb5 {[%clk 0:02:26.5]} 26. Rc7 {[%clk 0:02:37.2]}
26... Rd7 {[%clk 0:02:26.9]} 27. Rac1 {[%clk 0:02:37.5]} 27... Rad8 {[%clk
0:02:20.7]} 28. h4 {[%clk 0:02:36.6]} 28... Kf7 {[%clk 0:02:18.7]} 29. g4 {[%clk
0:02:34.3]} 29... g6 {[%clk 0:02:16.1]} 30. Kg2 {[%clk 0:02:34.9]} 30... Rxc7
{[%clk 0:02:16]} 31. Rxc7+ {[%clk 0:02:35]} 31... Rd7 {[%clk 0:02:17.4]} 32. Rc8
{[%clk 0:02:35.8]} 32... h5 {[%clk 0:01:48.1]} 33. Kg3 {[%clk 0:02:28.8]} 33...
fxg4 {[%clk 0:01:45]} 34. fxg4 {[%clk 0:02:30.7]} 34... Be2 {[%clk 0:01:43.5]}
35. gxh5 {[%clk 0:02:30.2]} 35... gxh5 {[%clk 0:01:43.3]} 36. Kf4 {[%clk
0:02:29.8]} 36... Kg6 {[%clk 0:01:39.9]} 37. Rg8+ {[%clk 0:02:29.8]} 37... Rg7
{[%clk 0:01:41]} 38. Rf8 {[%clk 0:02:27.7]} 38... Rf7+ {[%clk 0:01:39.8]} 39.
Rxf7 {[%clk 0:02:29.4]} 39... Kxf7 {[%clk 0:01:40.3]} 40. Kg5 {[%clk 0:02:31.3]}
40... Ke8 {[%clk 0:01:40.1]} 41. Kf6 {[%clk 0:02:32]} 41... Kd7 {[%clk
0:01:41.3]} 42. Kf7 {[%clk 0:02:32.9]} 42... Bg4 {[%clk 0:01:41.9]} 43. Kf6
{[%clk 0:02:33.9]} 43... Bf3 {[%clk 0:01:43]} 44. Kf7 {[%clk 0:02:35.4]} 44...
Bg4 {[%clk 0:01:44]} 45. Kf6 {[%clk 0:02:36.9]} 45... Bd1 {[%clk 0:01:44.8]}
1/2-1/2

[Event "*** Titled Tuesday 3|2 Blitz"]
[Site "Chess.com"]
[Date "2016.02.02"]
[Round "8"]
[White "DaPazz"]
[Black "TheMagician"]
[Result "0-1"]
[WhiteElo "2002"]
[BlackElo "2140"]
[TimeControl "180+2"]
[EndTime "18:34:44 PST"]
[Termination "TheMagician won by resignation"]

1. g3 {[%clk 0:02:57.9]} 1... d5 {[%clk 0:03:00.5]} 2. Bg2 {[%clk 0:02:59.1]}
2... c6 {[%clk 0:03:01.9]} 3. e4 {[%clk 0:03:00]} 3... dxe4 {[%clk 0:03:02.6]}
4. Bxe4 {[%clk 0:03:00.7]} 4... Nf6 {[%clk 0:03:03.9]} 5. Bg2 {[%clk 0:03:02.1]}
5... e5 {[%clk 0:03:05.1]} 6. Ne2 {[%clk 0:03:03.2]} 6... Bc5 {[%clk 0:03:05.9]}
7. O-O {[%clk 0:03:04.4]} 7... O-O {[%clk 0:03:06.1]} 8. d3 {[%clk 0:03:05.9]}
8... Ng4 {[%clk 0:03:06.5]} 9. h3 {[%clk 0:03:03.7]} 9... Nf6 {[%clk 0:03:06.3]}
10. Be3 {[%clk 0:03:03.9]} 10... Bxe3 {[%clk 0:03:05.4]} 11. fxe3 {[%clk
0:03:03.8]} 11... Nd5 {[%clk 0:03:06.2]} 12. Qd2 {[%clk 0:02:58]} 12... Qb6
{[%clk 0:03:06.9]} 13. Bxd5 {[%clk 0:02:58.2]} 13... cxd5 {[%clk 0:03:07.8]} 14.
b3 {[%clk 0:02:59.6]} 14... Bxh3 {[%clk 0:03:08.2]} 15. Rf2 {[%clk 0:02:57.7]}
15... Nc6 {[%clk 0:03:05.6]} 16. Nbc3 {[%clk 0:02:57.9]} 16... Rad8 {[%clk
0:03:05.1]} 17. Rh2 {[%clk 0:02:54.6]} 17... Bg4 {[%clk 0:03:05.5]} 18. Rf1
{[%clk 0:02:50.7]} 18... Qa5 {[%clk 0:02:59.3]} 19. a4 {[%clk 0:02:39.8]} 19...
Bxe2 {[%clk 0:02:59.5]} 20. Rxe2 {[%clk 0:02:36.6]} 20... d4 {[%clk 0:03:00.4]}
21. Ne4 {[%clk 0:02:35.3]} 21... Qxd2 {[%clk 0:03:00.1]} 22. Nxd2 {[%clk
0:02:34.2]} 22... dxe3 {[%clk 0:02:57]} 23. Rxe3 {[%clk 0:02:34.9]} 23... f5
{[%clk 0:02:52.9]} 24. Nf3 {[%clk 0:02:35.4]} 24... Rfe8 {[%clk 0:02:34.5]} 25.
Rfe1 {[%clk 0:02:34.7]} 25... Rd5 {[%clk 0:02:24.6]} 26. d4 {[%clk 0:02:23.5]}
26... Nxd4 {[%clk 0:02:23.2]} 27. Nxd4 {[%clk 0:02:20.7]} 27... Rxd4 {[%clk
0:02:22.7]} 28. Rxe5 {[%clk 0:02:21.7]} 28... Rxe5 {[%clk 0:02:23.3]} 29. Rxe5
{[%clk 0:02:22.6]} 29... Rd1+ {[%clk 0:02:15.3]} 30. Kf2 {[%clk 0:02:22.5]}
30... Rc1 {[%clk 0:02:12.8]} 31. Rc5 {[%clk 0:02:22.7]} 31... b6 {[%clk
0:02:04.1]} 32. Rc7 {[%clk 0:02:23.3]} 32... a5 {[%clk 0:01:57.6]} 33. Kf3
{[%clk 0:02:23.1]} 33... h6 {[%clk 0:01:51.3]} 34. Kf4 {[%clk 0:02:23.8]} 34...
Rf1+ {[%clk 0:01:52.3]} 35. Ke5 {[%clk 0:02:23.9]} 35... Rf3 {[%clk 0:01:48.5]}
36. Ke6 {[%clk 0:02:11.2]} 36... Kh7 {[%clk 0:01:39.6]} 37. Rc6 {[%clk
0:02:05.6]} 37... Rxg3 {[%clk 0:01:37.6]} 38. Kxf5 {[%clk 0:02:05.8]} 38... h5
{[%clk 0:01:35.8]} 39. Kf4 {[%clk 0:02:00.7]} 39... Rg6 {[%clk 0:01:32.7]} 40.
Rc4 {[%clk 0:01:51.7]} 40... Rg4+ {[%clk 0:01:31.6]} 41. Kf3 {[%clk 0:01:51.1]}
41... Rxc4 {[%clk 0:01:32.6]} 42. bxc4 {[%clk 0:01:52.4]} 42... g5 {[%clk
0:01:32.3]} 43. Ke4 {[%clk 0:01:52.8]} 43... h4 {[%clk 0:01:32.9]} 0-1

[Event "*** Titled Tuesday 3|2 Blitz"]
[Site "Chess.com"]
[Date "2016.02.02"]
[Round "8"]
[White "Konavets"]
[Black "AndreyOstrovskiy"]
[Result "0-1"]
[WhiteElo "2494"]
[BlackElo "2464"]
[TimeControl "180+2"]
[EndTime "18:34:51 PST"]
[Termination "AndreyOstrovskiy won by resignation"]

1. Nf3 {[%clk 0:03:01.9]} 1... Nf6 {[%clk 0:03:00.8]} 2. d4 {[%clk 0:03:02.9]}
2... e6 {[%clk 0:03:01.4]} 3. Bf4 {[%clk 0:03:04.3]} 3... b6 {[%clk 0:02:59.9]}
4. c3 {[%clk 0:03:05.9]} 4... Bb7 {[%clk 0:03:01]} 5. Nbd2 {[%clk 0:03:06.9]}
5... c5 {[%clk 0:02:59.8]} 6. e3 {[%clk 0:03:08.4]} 6... Be7 {[%clk 0:02:59.7]}
7. Bd3 {[%clk 0:03:09.8]} 7... O-O {[%clk 0:02:59.3]} 8. O-O {[%clk 0:03:11]}
8... cxd4 {[%clk 0:02:59.5]} 9. exd4 {[%clk 0:03:12]} 9... h6 {[%clk 0:02:58.5]}
10. Re1 {[%clk 0:03:13.2]} 10... d6 {[%clk 0:02:58.6]} 11. a4 {[%clk 0:03:14.5]}
11... Nbd7 {[%clk 0:02:56]} 12. h3 {[%clk 0:03:15.9]} 12... Rc8 {[%clk 0:02:50]}
13. Bh2 {[%clk 0:03:17]} 13... Re8 {[%clk 0:02:49.3]} 14. Nc4 {[%clk 0:03:18.1]}
14... Qc7 {[%clk 0:02:48.2]} 15. a5 {[%clk 0:03:19.4]} 15... b5 {[%clk
0:02:46.8]} 16. Ne3 {[%clk 0:03:19.9]} 16... a6 {[%clk 0:02:44.2]} 17. Nh4
{[%clk 0:03:21.1]} 17... Bf8 {[%clk 0:02:28.3]} 18. Ng4 {[%clk 0:03:21.9]} 18...
Nxg4 {[%clk 0:02:19.2]} 19. Qxg4 {[%clk 0:03:22.8]} 19... Nf6 {[%clk 0:02:19.7]}
20. Qg3 {[%clk 0:03:22.3]} 20... Qb8 {[%clk 0:02:07.7]} 21. Re3 {[%clk
0:03:21.6]} 21... Bd5 {[%clk 0:02:01.9]} 22. Rae1 {[%clk 0:03:22.2]} 22... b4
{[%clk 0:02:00.9]} 23. Bxa6 {[%clk 0:03:22.8]} 23... Rc7 {[%clk 0:01:57.4]} 24.
Bd3 {[%clk 0:03:14.8]} 24... bxc3 {[%clk 0:01:53.3]} 25. bxc3 {[%clk 0:03:16.7]}
25... Qa8 {[%clk 0:01:46.6]} 26. a6 {[%clk 0:03:16.6]} 26... Rec8 {[%clk
0:01:44.5]} 27. Kh1 {[%clk 0:03:10.8]} 27... Kh8 {[%clk 0:01:36.4]} 28. Bg1
{[%clk 0:03:11]} 28... Rxc3 {[%clk 0:01:31.9]} 29. Nf3 {[%clk 0:03:12.1]} 29...
Bc4 {[%clk 0:01:15.8]} 30. Bxc4 {[%clk 0:03:12.5]} 30... R3xc4 {[%clk
0:01:16.7]} 31. Ra3 {[%clk 0:03:12.4]} 31... Rc1 {[%clk 0:01:11.9]} 32. Rxc1
{[%clk 0:03:13.1]} 32... Rxc1 {[%clk 0:01:12.8]} 33. Kh2 {[%clk 0:03:13.6]}
33... Rc6 {[%clk 0:01:07.9]} 34. a7 {[%clk 0:03:11.1]} 34... Rc7 {[%clk
0:01:08.7]} 35. Ne5 {[%clk 0:03:03.3]} 35... dxe5 {[%clk 0:01:02.8]} 36. dxe5
{[%clk 0:03:04.5]} 36... Nd5 {[%clk 0:00:56.3]} 37. f4 {[%clk 0:03:05.6]} 37...
Bxa3 {[%clk 0:00:56.2]} 38. Qxa3 {[%clk 0:03:06.5]} 38... Nxf4 {[%clk
0:00:49.7]} 39. Qg3 {[%clk 0:03:06.6]} 39... Nd5 {[%clk 0:00:32.1]} 40. Qa3
{[%clk 0:03:07.3]} 40... Rc8 {[%clk 0:00:29.5]} 41. Qa6 {[%clk 0:03:06.2]} 41...
Nf4 {[%clk 0:00:27.8]} 42. Qf1 {[%clk 0:03:06.9]} 42... g5 {[%clk 0:00:24.4]}
43. Bf2 {[%clk 0:02:57.6]} 43... Qe4 {[%clk 0:00:21.4]} 44. Bg3 {[%clk
0:02:58.8]} 44... Ra8 {[%clk 0:00:20.8]} 45. Qf2 {[%clk 0:02:57.1]} 45... Rxa7
{[%clk 0:00:20.1]} 46. Bxf4 {[%clk 0:02:58.4]} 46... Qxf4+ {[%clk 0:00:21.5]}
47. Qxf4 {[%clk 0:02:59.3]} 47... gxf4 {[%clk 0:00:22.9]} 48. h4 {[%clk
0:03:00.9]} 48... Ra3 {[%clk 0:00:23.5]} 49. g3 {[%clk 0:03:01.9]} 49... fxg3+
{[%clk 0:00:24.1]} 50. Kh3 {[%clk 0:03:03]} 50... h5 {[%clk 0:00:25.6]} 51. Kg2
{[%clk 0:03:04.2]} 51... Kh7 {[%clk 0:00:27.1]} 52. Kh3 {[%clk 0:03:06]} 52...
Kg6 {[%clk 0:00:28.5]} 53. Kg2 {[%clk 0:03:07.9]} 53... Kf5 {[%clk 0:00:30]} 54.
Kh3 {[%clk 0:03:09.8]} 54... Kxe5 {[%clk 0:00:31.4]} 55. Kg2 {[%clk 0:03:11.7]}
55... Kf5 {[%clk 0:00:32.7]} 56. Kh3 {[%clk 0:03:13.6]} 56... Kf4 {[%clk
0:00:34.1]} 57. Kg2 {[%clk 0:03:15.5]} 57... Kg4 {[%clk 0:00:35.5]} 58. Kg1
{[%clk 0:03:16.8]} 0-1

[Event "*** Titled Tuesday 3|2 Blitz"]
[Site "Chess.com"]
[Date "2016.02.02"]
[Round "8"]
[White "pKiLz5Rn9b"]
[Black "Hikaru"]
[Result "0-1"]
[WhiteElo "2376"]
[BlackElo "2829"]
[TimeControl "180+2"]
[EndTime "18:34:56 PST"]
[Termination "Hikaru won by resignation"]

1. e4 {[%clk 0:03:01.9]} 1... b6 {[%clk 0:03:01.1]} 2. d4 {[%clk 0:03:01.8]}
2... Bb7 {[%clk 0:03:03]} 3. Bd3 {[%clk 0:03:01.2]} 3... e6 {[%clk 0:03:04.5]}
4. Qe2 {[%clk 0:02:54.2]} 4... d5 {[%clk 0:03:05]} 5. Nf3 {[%clk 0:02:34.6]}
5... Nf6 {[%clk 0:03:05.6]} 6. e5 {[%clk 0:02:33.5]} 6... Nfd7 {[%clk
0:03:06.3]} 7. c3 {[%clk 0:02:28.1]} 7... c5 {[%clk 0:03:07.1]} 8. a3 {[%clk
0:02:18.9]} 8... Be7 {[%clk 0:03:05.8]} 9. b4 {[%clk 0:02:15.2]} 9... a5 {[%clk
0:02:46.6]} 10. b5 {[%clk 0:02:14.8]} 10... a4 {[%clk 0:02:40.4]} 11. O-O {[%clk
0:02:05.5]} 11... c4 {[%clk 0:02:36.3]} 12. Bc2 {[%clk 0:02:06.8]} 12... Ra5
{[%clk 0:02:37.3]} 13. Ra2 {[%clk 0:02:03.1]} 13... Rxb5 {[%clk 0:02:36.6]} 14.
Nbd2 {[%clk 0:01:37]} 14... Ra5 {[%clk 0:02:37.1]} 15. Ne1 {[%clk 0:01:35.8]}
15... h5 {[%clk 0:02:35.3]} 16. f4 {[%clk 0:01:35.2]} 16... g6 {[%clk
0:02:36.5]} 17. g3 {[%clk 0:01:35.6]} 17... Nc6 {[%clk 0:02:37.2]} 18. Ng2
{[%clk 0:01:29.3]} 18... b5 {[%clk 0:02:38]} 19. Ne3 {[%clk 0:01:25.2]} 19...
Nb6 {[%clk 0:02:38.8]} 20. h3 {[%clk 0:01:24.6]} 20... Bc8 {[%clk 0:02:38]} 21.
g4 {[%clk 0:01:24.4]} 21... hxg4 {[%clk 0:02:34.5]} 22. hxg4 {[%clk 0:01:26.3]}
22... Kd7 {[%clk 0:02:35.8]} 23. Nf3 {[%clk 0:01:16.2]} 23... Qg8 {[%clk
0:02:36.5]} 24. Kg2 {[%clk 0:01:14]} 24... Kc7 {[%clk 0:02:37.7]} 25. Bb2 {[%clk
0:01:01.9]} 25... Bd7 {[%clk 0:02:38.8]} 26. Raa1 {[%clk 0:01:02.7]} 26... Ra8
{[%clk 0:02:39.9]} 27. Rh1 {[%clk 0:01:00.2]} 27... Qg7 {[%clk 0:02:40.9]} 28.
g5 {[%clk 0:00:55.2]} 28... Rxh1 {[%clk 0:02:29]} 29. Rxh1 {[%clk 0:00:54.2]}
29... Qf8 {[%clk 0:02:30.6]} 30. Ra1 {[%clk 0:00:54]} 30... Na5 {[%clk
0:02:31.7]} 31. Ng4 {[%clk 0:00:49.1]} 31... Nb3 {[%clk 0:02:32.8]} 32. Ra2
{[%clk 0:00:50.4]} 32... Qg7 {[%clk 0:02:33.4]} 33. Nh4 {[%clk 0:00:34.8]} 33...
Rh8 {[%clk 0:02:33.8]} 34. Kg3 {[%clk 0:00:35.7]} 34... Bc6 {[%clk 0:02:23.1]}
35. Qf2 {[%clk 0:00:30.9]} 35... Qh7 {[%clk 0:02:23.2]} 36. Nh6 {[%clk
0:00:31.7]} 36... Bf8 {[%clk 0:02:23.3]} 37. Nf3 {[%clk 0:00:14.4]} 37... Bxh6
{[%clk 0:02:22.5]} 38. gxh6 {[%clk 0:00:16.3]} 38... Qxh6 {[%clk 0:02:24.4]} 39.
Ng5 {[%clk 0:00:18.2]} 39... Qh4+ {[%clk 0:02:18.8]} 40. Kf3 {[%clk 0:00:19.5]}
40... Qxf2+ {[%clk 0:02:20.7]} 41. Kxf2 {[%clk 0:00:21.4]} 41... Rh2+ {[%clk
0:02:21.8]} 0-1

[Event "*** Titled Tuesday 3|2 Blitz"]
[Site "Chess.com"]
[Date "2016.02.02"]
[Round "8"]
[White "LADIESGET2KNOWME"]
[Black "Quiet_Desperation"]
[Result "0-1"]
[WhiteElo "2304"]
[BlackElo "2124"]
[TimeControl "180+2"]
[EndTime "18:36:42 PST"]
[Termination "Quiet_Desperation won on time"]

1. d4 {[%clk 0:03:01.9]} 1... Nf6 {[%clk 0:03:00.9]} 2. c4 {[%clk 0:03:03]} 2...
e6 {[%clk 0:03:02.5]} 3. Nf3 {[%clk 0:03:03.8]} 3... Bb4+ {[%clk 0:03:03.9]} 4.
Bd2 {[%clk 0:03:04.7]} 4... Qe7 {[%clk 0:03:05.3]} 5. Nc3 {[%clk 0:03:04.9]}
5... Nc6 {[%clk 0:03:06.3]} 6. g3 {[%clk 0:03:05.7]} 6... O-O {[%clk 0:03:06.6]}
7. Bg2 {[%clk 0:03:06.9]} 7... Bxc3 {[%clk 0:03:08.1]} 8. Bxc3 {[%clk
0:03:07.9]} 8... Ne4 {[%clk 0:03:09.9]} 9. Rc1 {[%clk 0:03:08.6]} 9... Nxc3
{[%clk 0:03:11.5]} 10. Rxc3 {[%clk 0:03:09.4]} 10... d6 {[%clk 0:03:13.2]} 11.
d5 {[%clk 0:03:09.8]} 11... Nb8 {[%clk 0:03:14.1]} 12. dxe6 {[%clk 0:03:11.1]}
12... fxe6 {[%clk 0:03:16]} 13. O-O {[%clk 0:03:11.9]} 13... e5 {[%clk
0:03:17.5]} 14. c5 {[%clk 0:03:12]} 14... Nc6 {[%clk 0:03:10.3]} 15. cxd6 {[%clk
0:03:12.4]} 15... cxd6 {[%clk 0:03:11.4]} 16. h3 {[%clk 0:02:55.2]} 16... Be6
{[%clk 0:03:08.2]} 17. Qd2 {[%clk 0:02:48.2]} 17... Rad8 {[%clk 0:03:03.9]} 18.
Ng5 {[%clk 0:02:47.7]} 18... Nd4 {[%clk 0:02:36.7]} 19. Nxe6 {[%clk 0:02:40.1]}
19... Qxe6 {[%clk 0:02:37]} 20. e3 {[%clk 0:02:40.7]} 20... Nf3+ {[%clk
0:02:38.3]} 21. Bxf3 {[%clk 0:02:41.3]} 21... Rxf3 {[%clk 0:02:40.2]} 22. Rc7
{[%clk 0:02:35.6]} 22... Rdf8 {[%clk 0:02:34.3]} 23. Rxb7 {[%clk 0:02:21.9]}
23... d5 {[%clk 0:02:16.7]} 24. Qa5 {[%clk 0:02:13.7]} 24... e4 {[%clk
0:02:00.7]} 25. Qxa7 {[%clk 0:02:02.7]} 25... Qe5 {[%clk 0:01:29.5]} 26. Kg2
{[%clk 0:01:39.2]} 26... Qf6 {[%clk 0:01:11.9]} 27. Kg1 {[%clk 0:01:30.3]} 27...
Rxg3+ {[%clk 0:01:09.9]} 28. Kh2 {[%clk 0:01:28.8]} 28... Rf3 {[%clk 0:01:02.2]}
29. Kg1 {[%clk 0:00:22.3]} 29... Rxh3 {[%clk 0:00:47.7]} 30. f4 {[%clk
0:00:09.8]} 30... exf3 {[%clk 0:00:46.5]} 31. Kf2 {[%clk 0:00:10.5]} 31... Rh2+
{[%clk 0:00:43.6]} 32. Ke1 {[%clk 0:00:11.2]} 32... Re2+ {[%clk 0:00:16.6]} 33.
Kd1 {[%clk 0:00:11.8]} 33... Rxb2 {[%clk 0:00:11.7]} 0-1